Posting Date,Expenditure Area,Supplier Name,Net Amount,Expense Type,Reason for Expense 
07-Mar-19,Culture & Environment Services,Regional Publications,960.00,Advertising/Publicity,Advertising for Cemetery
27-Mar-19,Culture & Environment Services,Www.Red17.Co.Uk,86.55,Advertising/Publicity,Poster frames for toilets
13-Mar-19,Culture & Environment Services,Rumwood Nurseries,"1,207.44",Capital Expenditure,Cemeteries Roses
22-Mar-19,Culture & Environment Services,Amzn Mktp Uk,45.75,Catering/Beverages,Lights for centre pieces
11-Mar-19,Culture & Environment Services,Asda Stores 4278,20.61,Catering/Beverages,"Lemons, Limes, Milk, Cordial, Bread"
18-Mar-19,Culture & Environment Services,Asda Stores 4278,82.67,Catering/Beverages,Catering order Conference - recharge
04-Mar-19,Culture & Environment Services,Asda Superstore,85.85,Catering/Beverages,Catering order - recharge
01-Mar-19,Culture & Environment Services,Booker Limited Ipswich,62.59,Catering/Beverages,"Cordials, sweets, hot chocolate for confereces"
11-Mar-19,Culture & Environment Services,Booker Limited Ipswich,180.14,Catering/Beverages,Various drinks for bars to sell at Pams House event
08-Mar-19,Culture & Environment Services,Cater4you.Co.Uk,111.72,Catering/Beverages,Trays
18-Mar-19,Culture & Environment Services,Sainsburys S/mkts,17.00,Catering/Beverages,Food for Developer Conference 50943
18-Mar-19,Culture & Environment Services,Sainsburys S/mkts,0.08,Catering/Beverages,Food for Developer Conference 50943
25-Mar-19,Culture & Environment Services,Sainsburys S/mkts,9.62,Catering/Beverages,Rider requirements 
25-Mar-19,Culture & Environment Services,Sainsburys S/mkts,0.08,Catering/Beverages,Rider requirements 
29-Mar-19,Culture & Environment Services,Sainsburys S/mkts,5.75,Catering/Beverages,Food for conference 51086 and conference at ransomes
15-Mar-19,Culture & Environment Services,Tesco Store 2748,23.33,Catering/Beverages,Food for Developer Conference (47.70) 50943 Gin for Regent
15-Mar-19,Culture & Environment Services,Tesco Store 2748,0.33,Catering/Beverages,Food for Developer Conference (47.70) 50943 Gin for Regent
15-Mar-19,Culture & Environment Services,Tesco Store 2748,47.30,Catering/Beverages,Food for Developer Conference (47.70) 50943 Gin for Regent
01-Mar-19,Culture & Environment Services,Tesco Store 3240,4.50,Catering/Beverages,Lemons for Bar
05-Mar-19,Culture & Environment Services,Tesco Store 3240,1.09,Catering/Beverages,"Lemons, Pink Gin etc for Regent"
05-Mar-19,Culture & Environment Services,Tesco Store 3240,114.37,Catering/Beverages,"Lemons, Pink Gin etc for Regent"
12-Mar-19,Culture & Environment Services,Tesco Store 3240,131.48,Catering/Beverages,Food for Human Robot 51074
12-Mar-19,Culture & Environment Services,Tesco Store 3240,6.36,Catering/Beverages,food for Human Robot Conference 51074
15-Mar-19,Culture & Environment Services,Tesco Store 3240,78.33,Catering/Beverages,Food for Developer conference (220.03) 50943 Gin for Regen
15-Mar-19,Culture & Environment Services,Tesco Store 3240,4.67,Catering/Beverages,Food for Developer conference (220.03) 50943 Gin for Regen
15-Mar-19,Culture & Environment Services,Tesco Store 3240,178.69,Catering/Beverages,Food for Developer conference (220.03) 50943 Gin for Regen
19-Mar-19,Culture & Environment Services,Tesco Store 3240,78.33,Catering/Beverages,"Gin for Regent Bars, Milk for 50+"
19-Mar-19,Culture & Environment Services,Tesco Store 3240,1.09,Catering/Beverages,"Gin for Regent Bars, Milk for 50+"
28-Mar-19,Culture & Environment Services,Tesco Store 3240,65.72,Catering/Beverages,Food for conference 51086 and event at ransomes SSC
28-Mar-19,Culture & Environment Services,Tesco Store 3240,5.30,Catering/Beverages,Food for conference 51086 and event at ransomes SSC
19-Mar-19,Culture & Environment Services,Town & Tea,22.00,Catering/Beverages,Meeting refreshment sundries
19-Mar-19,Culture & Environment Services,Town & Tea,25.08,Catering/Beverages,Meeting refreshment sundries
19-Mar-19,Culture & Environment Services,Town & Tea,32.42,Catering/Beverages,Meeting refreshment sundries
19-Mar-19,Culture & Environment Services,Town & Tea,40.92,Catering/Beverages,Meeting refreshment sundries
19-Mar-19,Culture & Environment Services,Town & Tea,48.72,Catering/Beverages,Meeting refreshment sundries
19-Mar-19,Culture & Environment Services,Town & Tea,56.50,Catering/Beverages,Meeting refreshment sundries
13-Mar-19,Culture & Environment Services,Waitrose Ltd,5.08,Catering/Beverages,Dietary food for Human Robot conference 51074
13-Mar-19,Culture & Environment Services,Waitrose Ltd,0.95,Catering/Beverages,Red Onions for Human Robot 51074
15-Mar-19,Culture & Environment Services,Waitrose Ltd,4.24,Catering/Beverages,Cucumber for Developer Conference 50943
18-Mar-19,Culture & Environment Services,Waitrose Ltd,4.08,Catering/Beverages,Cucumbers for Developer Conference 50943
18-Mar-19,Culture & Environment Services,Waitrose Ltd,0.42,Catering/Beverages,Food for Developer Conference
18-Mar-19,Culture & Environment Services,Waitrose Ltd,8.80,Catering/Beverages,Food for Developer Conference 50943
18-Mar-19,Culture & Environment Services,Waitrose Ltd,9.28,Catering/Beverages,Lemons and limes
18-Mar-19,Culture & Environment Services,Waitrose Ltd,4.60,Catering/Beverages,Milk for Developer Conference 50943
22-Mar-19,Culture & Environment Services,Waitrose Ltd,2.30,Catering/Beverages,Milk for Various events at corn exchange
28-Mar-19,Culture & Environment Services,Waitrose Ltd,1.16,Catering/Beverages,peppers for conference 51086
29-Mar-19,Culture & Environment Services,Waitrose Ltd,4.00,Catering/Beverages,Food for conference 51086
25-Mar-19,Culture & Environment Services,Amzn Mktp Uk,8.32,Cleaning Supplies,Hoover bags for masonry team
04-Mar-19,Culture & Environment Services,Bunzl,157.00,Cleaning Supplies,Supplies Old Foundry road toilets - 10 packs of toilet roll
08-Mar-19,Culture & Environment Services,Bunzl,67.41,Cleaning Supplies,blue and loo roll
13-Mar-19,Culture & Environment Services,Bunzl,122.82,Cleaning Supplies,Toilet paper 2 fold and T. rolls for Norse cleaners
21-Mar-19,Culture & Environment Services,Bunzl Cleaning & Hygie,157.00,Cleaning Supplies,Cleaning Supplies Old Foundry road toilets
01-Mar-19,Culture & Environment Services,Dale Sauna Ltd,233.57,Cleaning Supplies,water testing tablets
01-Mar-19,Culture & Environment Services,Firstaid4less.Co.Uk,180.75,Cleaning Supplies,First Aid Supplies
12-Mar-19,Culture & Environment Services,Poundland Ltd 1719,0.83,Cleaning Supplies,Kettle Descaler
06-Mar-19,Culture & Environment Services,Www.Cleanroomsuppliesltd,243.40,Cleaning Supplies,Shoe covers for poolside.
14-Mar-19,Culture & Environment Services,Arco Ltd,99.99,Clothing / Uniform & Laundry,Work boots 
19-Mar-19,Culture & Environment Services,Paypal,113.33,Clothing / Uniform & Laundry,New Staff Uniform - Black Shirts
28-Mar-19,Culture & Environment Services,W D Coe Ltd,144.45,Clothing / Uniform & Laundry,Uniform for Northgate staff
01-Mar-19,Culture & Environment Services,Www.Tudorenvironmental,25.00,Clothing / Uniform & Laundry,Coverall Respirator Gloves for Arb Team
05-Mar-19,Culture & Environment Services,Www.Tudorenvironmental,-245.00,Clothing / Uniform & Laundry,Refund of PPE
04-Mar-19,Culture & Environment Services,Naturescape Limited,451.20,Development & Maintenance of Natural Areas,Plant Plugs for Sproughton water retention basins
13-Mar-19,Culture & Environment Services,Amzn Mktp Uk,168.33,Direct Transport Costs,tablet
20-Mar-19,Culture & Environment Services,Amzn Mktp Uk,13.42,Direct Transport Costs,tablet cables
06-Mar-19,Culture & Environment Services,Asda Petrol 4278,64.98,Direct Transport Costs,62.04l diesel DY56VKD
18-Mar-19,Culture & Environment Services,Asda Petrol 4278,62.51,Direct Transport Costs,diesel fuel for GV12 SWJ
06-Mar-19,Culture & Environment Services,Dvla Vehicle Tax,252.50,Direct Transport Costs,Vehicle Tax for LG15 BXF
06-Mar-19,Culture & Environment Services,Dvla Vehicle Tax,252.50,Direct Transport Costs,Vehicle Tax for LG15 BXH
06-Mar-19,Culture & Environment Services,Dvla Vehicle Tax,252.50,Direct Transport Costs,Vehicle tax for LG15 BXK
06-Mar-19,Culture & Environment Services,Dvla Vehicle Tax,252.50,Direct Transport Costs,Vehicle Tax for LG15 BXP
06-Mar-19,Culture & Environment Services,Dvla Vehicle Tax,252.50,Direct Transport Costs,Vehicle Tax for LG15 BXR
06-Mar-19,Culture & Environment Services,Dvla Vehicle Tax,252.50,Direct Transport Costs,Vehicle Tax for LG15 BXU
06-Mar-19,Culture & Environment Services,Dvla Vehicle Tax,252.50,Direct Transport Costs,Vehicle Tax for LG15 BXV
06-Mar-19,Culture & Environment Services,Dvla Vehicle Tax,252.50,Direct Transport Costs,Vehicle Tax for LJ15 XFG
06-Mar-19,Culture & Environment Services,Dvla Vehicle Tax,252.50,Direct Transport Costs,Vehicle Tax for LJ15 XFH
06-Mar-19,Culture & Environment Services,Dvla Vehicle Tax,252.50,Direct Transport Costs,Vehicle Tax for LJ15 XFM
06-Mar-19,Culture & Environment Services,Dvla Vehicle Tax,252.50,Direct Transport Costs,Vehicle Tax for LJ15 XFN
06-Mar-19,Culture & Environment Services,Dvla Vehicle Tax,252.50,Direct Transport Costs,Vehicle Tax for LJ15 XFO
06-Mar-19,Culture & Environment Services,Dvla Vehicle Tax,252.50,Direct Transport Costs,Vehicle Tax for LJ15 XFP
06-Mar-19,Culture & Environment Services,Dvla Vehicle Tax,252.50,Direct Transport Costs,Vehicle Tax for LJ15 XFR
06-Mar-19,Culture & Environment Services,Dvla Vehicle Tax,252.50,Direct Transport Costs,Vehicle Tax for LJ15 XFS
06-Mar-19,Culture & Environment Services,Dvla Vehicle Tax,252.50,Direct Transport Costs,Vehicle Tax for LJ15 XFT
06-Mar-19,Culture & Environment Services,Dvla Vehicle Tax,252.50,Direct Transport Costs,Vehicle Tax for LJ15 XFU
06-Mar-19,Culture & Environment Services,Dvla Vehicle Tax,252.50,Direct Transport Costs,Vehicle Tax for LJ15 XFV
06-Mar-19,Culture & Environment Services,Dvla Vehicle Tax,252.50,Direct Transport Costs,Vehicle Tax for LJ15 XFW
06-Mar-19,Culture & Environment Services,Dvla Vehicle Tax,252.50,Direct Transport Costs,Vehicle Tax for LJ15 XFX
07-Mar-19,Culture & Environment Services,Dvla Vehicle Tax,252.50,Direct Transport Costs,Vehicle Tax for AO08 VAF
07-Mar-19,Culture & Environment Services,Dvla Vehicle Tax,252.50,Direct Transport Costs,Vehicle Tax for AP07 SKX
07-Mar-19,Culture & Environment Services,Dvla Vehicle Tax,252.50,Direct Transport Costs,Vehicle Tax for AP07 YNZ
07-Mar-19,Culture & Environment Services,Dvla Vehicle Tax,252.50,Direct Transport Costs,Vehicle Tax for AV07 LWU
07-Mar-19,Culture & Environment Services,Dvla Vehicle Tax,252.50,Direct Transport Costs,Vehicle Tax for DV10 CGX
07-Mar-19,Culture & Environment Services,Dvla Vehicle Tax,252.50,Direct Transport Costs,Vehicle Tax for FG09 PWO
07-Mar-19,Culture & Environment Services,Dvla Vehicle Tax,252.50,Direct Transport Costs,Vehicle Tax for LJ15 AUN
08-Mar-19,Culture & Environment Services,Dvla Vehicle Tax,252.50,Direct Transport Costs,VEHICLE TAX FOR AY14 NUX
08-Mar-19,Culture & Environment Services,Dvla Vehicle Tax,252.50,Direct Transport Costs,VEHICLE TAX FPR LG15 BXN
12-Mar-19,Culture & Environment Services,Dvla Vehicle Tax,252.50,Direct Transport Costs,Vehicle tax for LJ15 XFL
15-Mar-19,Culture & Environment Services,Dvla Vehicle Tax,252.50,Direct Transport Costs,Vehicle tax for LG15 BXJ
20-Mar-19,Culture & Environment Services,Dvla Vehicle Tax,157.50,Direct Transport Costs,Vehicle Tax for AU10 CGY
20-Mar-19,Culture & Environment Services,Dvla Vehicle Tax,252.50,Direct Transport Costs,Vehicle Tax for LG15 BXO
22-Mar-19,Culture & Environment Services,Dvla Vehicle Tax,252.50,Direct Transport Costs,Vehicle Tax for LG15 BXM
28-Mar-19,Culture & Environment Services,Dvla Vehicle Tax,252.50,Direct Transport Costs,Vehicle Tax for LG15 BXS
28-Mar-19,Culture & Environment Services,Dvla Vehicle Tax,252.50,Direct Transport Costs,Vehicle Tax for LJ15 XFU
29-Mar-19,Culture & Environment Services,Dvla Vehicle Tax,252.50,Direct Transport Costs,Vehicle Tax for LG15 BXL
05-Mar-19,Culture & Environment Services,Ram-Mount.Co.Uk,58.27,Direct Transport Costs,Tablet mount
13-Mar-19,Culture & Environment Services,Ram-Mount.Co.Uk,68.27,Direct Transport Costs,tablet mount
20-Mar-19,Culture & Environment Services,Screens-R-Us-Limited,42.00,Direct Transport Costs,chip repair for av13 opr
20-Mar-19,Culture & Environment Services,Screens-R-Us-Limited,252.00,Direct Transport Costs,o/s vent smashed av13 ops
20-Mar-19,Culture & Environment Services,Screens-R-Us-Limited,146.40,Direct Transport Costs,REPLACEMENT WINDSCREEN AV58 PLU
20-Mar-19,Culture & Environment Services,Screens-R-Us-Limited,42.00,Direct Transport Costs,STONE CHIP REPAIR TO AV58 PLU
20-Mar-19,Culture & Environment Services,Screens-R-Us-Limited,264.00,Direct Transport Costs,Windscreen replacement av13 opr
04-Mar-19,Culture & Environment Services,Tesco Pay At Pump 3887,66.67,Direct Transport Costs,diesel fuel for GV12 SWJ
19-Mar-19,Culture & Environment Services,The Windscreen Co,270.00,Direct Transport Costs,Replacement screen for AY64 LRZ F6287
26-Mar-19,Culture & Environment Services,Paypal,2.32,Equipment - Repairs,No smoking stickers for equipment
28-Mar-19,Culture & Environment Services,Paypal,2.32,Equipment - Repairs,No smoking stickers for equipment
29-Mar-19,Culture & Environment Services,Ajax Domestic Spares,579.00,Equipment / Furniture / Materials,cleaner for Ipswich Town Hall and Corn Exchange
12-Mar-19,Culture & Environment Services,Amazon.Co.Uk,12.91,Equipment / Furniture / Materials,H&S book
15-Mar-19,Culture & Environment Services,Amazon.Co.Uk,27.82,Equipment / Furniture / Materials,x1 new till assembly for reception
18-Mar-19,Culture & Environment Services,Amazon.Co.Uk,105.82,Equipment / Furniture / Materials,Equipment for Events
18-Mar-19,Culture & Environment Services,Amazon.Co.Uk,60.83,Equipment / Furniture / Materials,Equipment for Holi Festival 2019
18-Mar-19,Culture & Environment Services,Amazon.Co.Uk,75.70,Equipment / Furniture / Materials,Equipment for Holi Festival 2019
18-Mar-19,Culture & Environment Services,Amazon.Co.Uk,24.48,Equipment / Furniture / Materials,limbo set for parties and holidays (rollerskating)
22-Mar-19,Culture & Environment Services,Amazon.Co.Uk,16.75,Equipment / Furniture / Materials,Books
01-Mar-19,Culture & Environment Services,Amzn Mktp Uk,23.25,Equipment / Furniture / Materials,light bulbs
08-Mar-19,Culture & Environment Services,Amzn Mktp Uk,16.07,Equipment / Furniture / Materials,Events H&S books x 2 Fairgrounds + Crowds
08-Mar-19,Culture & Environment Services,Amzn Mktp Uk,2.47,Equipment / Furniture / Materials,stopwatch x1
11-Mar-19,Culture & Environment Services,Amzn Mktp Uk,1.63,Equipment / Furniture / Materials,stopwatch for sport events
12-Mar-19,Culture & Environment Services,Amzn Mktp Uk,15.20,Equipment / Furniture / Materials,gt85 cans x6 for sports events - lubricant
14-Mar-19,Culture & Environment Services,Amzn Mktp Uk,8.42,Equipment / Furniture / Materials,x2 large bucket containers for general use
18-Mar-19,Culture & Environment Services,Amzn Mktp Uk,10.82,Equipment / Furniture / Materials,1 large holdall bag for fitness class equipment
18-Mar-19,Culture & Environment Services,Amzn Mktp Uk,25.39,Equipment / Furniture / Materials,2 holdall bags for fitness gloves and boxing gloves classes
18-Mar-19,Culture & Environment Services,Amzn Mktp Uk,21.00,Equipment / Furniture / Materials,Vehicle washing brushes
21-Mar-19,Culture & Environment Services,Amzn Mktp Uk,109.82,Equipment / Furniture / Materials,Event equipment Holi 2019
28-Mar-19,Culture & Environment Services,Amzn Mktp Uk,6.66,Equipment / Furniture / Materials,Screen protector for work phone
29-Mar-19,Culture & Environment Services,Amzn Mktp Uk,18.77,Equipment / Furniture / Materials,x2 disco lights for parties and holiday activities
29-Mar-19,Culture & Environment Services,Amznmktplace,1.25,Equipment / Furniture / Materials,storage boxes and brush & dustpan
01-Mar-19,Culture & Environment Services,Argos Ltd,41.66,Equipment / Furniture / Materials,Printer
05-Mar-19,Culture & Environment Services,Argos Ltd,6.67,Equipment / Furniture / Materials,Shower head for dressing room shower
05-Mar-19,Culture & Environment Services,B & M Retail,25.00,Equipment / Furniture / Materials,Heaters for dressing rooms
12-Mar-19,Culture & Environment Services,B & M Retail,2.98,Equipment / Furniture / Materials,Sharpies
14-Mar-19,Culture & Environment Services,B & M Retail,4.17,Equipment / Furniture / Materials,Post it notes
18-Mar-19,Culture & Environment Services,B & M Retail,6.67,Equipment / Furniture / Materials,Purchase of AA Batteries for microphones.
18-Mar-19,Culture & Environment Services,B & M Retail,6.67,Equipment / Furniture / Materials,Purchase of AA Batteries for microphones.
20-Mar-19,Culture & Environment Services,B & M Retail,3.73,Equipment / Furniture / Materials,Stationary boxes for drawers in office
29-Mar-19,Culture & Environment Services,B & M Retail,1.66,Equipment / Furniture / Materials,Rubber washing up gloves hairy bikers kitchen assistant
18-Mar-19,Culture & Environment Services,Bolton Stores,5.37,Equipment / Furniture / Materials,TED training for staff
26-Mar-19,Culture & Environment Services,Bypass Nurseries,"2,000.00",Equipment / Furniture / Materials,Planters for improvements to Millennium Cemetery
04-Mar-19,Culture & Environment Services,Cool Beanz,3.92,Equipment / Furniture / Materials,Meeting refreshments
15-Mar-19,Culture & Environment Services,Decathlon UK Vad,26.53,Equipment / Furniture / Materials,16 skipping ropes
04-Mar-19,Culture & Environment Services,Dolphinfitness.Co,98.67,Equipment / Furniture / Materials,DUMBELLS FOR WHITTON SPORTS CENTRE
20-Mar-19,Culture & Environment Services,Dolphinfitness.Co,-17.22,Equipment / Furniture / Materials,Refund on dumbells
05-Mar-19,Culture & Environment Services,Fitfituk.Com,79.12,Equipment / Furniture / Materials,Dumbbells 2.5kg x 4 & 4kg x 1
14-Mar-19,Culture & Environment Services,Foams 4 Sports Ltd,118.42,Equipment / Furniture / Materials,Various athletics equipment
27-Mar-19,Culture & Environment Services,Fr Jones And Son Ltd,84.32,Equipment / Furniture / Materials,"chainsaw gloves, chipper ear defenders etc"
19-Mar-19,Culture & Environment Services,Halfords 0883,29.17,Equipment / Furniture / Materials,Vehicle washing brushes
18-Mar-19,Culture & Environment Services,J P Lennard Ltd,124.99,Equipment / Furniture / Materials,x6 new badminton nets and x1 indoor football
19-Mar-19,Culture & Environment Services,J P Lennard Ltd,283.64,Equipment / Furniture / Materials,mats trolley fitness classes and indoor football x1
20-Mar-19,Culture & Environment Services,J P Lennard Ltd,34.00,Equipment / Furniture / Materials,whistle wrist coils
28-Mar-19,Culture & Environment Services,J P Lennard Ltd,343.24,Equipment / Furniture / Materials,weight rack x1 new for fitness classes and weights
11-Mar-19,Culture & Environment Services,Lumberjacks,134.70,Equipment / Furniture / Materials,Decking board & screws - CCP PLAY AREA - Christchurch Hub
28-Mar-19,Culture & Environment Services,Lumberjacks,45.08,Equipment / Furniture / Materials,Cast rail/fencing - BOURNE PARK - PA Inspector
29-Mar-19,Culture & Environment Services,Lumberjacks,43.38,Equipment / Furniture / Materials,Fencing repair - BOURNE PARK - PA Inspector
25-Mar-19,Culture & Environment Services,Machine Mart Ltd,29.98,Equipment / Furniture / Materials,Events Equipment
11-Mar-19,Culture & Environment Services,Mde Electrical Supplie,30.00,Equipment / Furniture / Materials,Batteries for head mic
07-Mar-19,Culture & Environment Services,Net World Sports,43.27,Equipment / Furniture / Materials,netball bibs sets and whistles
14-Mar-19,Culture & Environment Services,Net World Sports,29.93,Equipment / Furniture / Materials,football bibs - x2 packs of 10
18-Mar-19,Culture & Environment Services,Paypal,193.56,Equipment / Furniture / Materials,"safety helmets, ear defenders, saw blade"
22-Mar-19,Culture & Environment Services,Paypal,19.98,Equipment / Furniture / Materials,T-key taper drive for panels (no receipt issued)
25-Mar-19,Culture & Environment Services,Paypal,47.02,Equipment / Furniture / Materials,Replacement glass cabinet light fitting
25-Mar-19,Culture & Environment Services,Rowland Brothers Trade,904.01,Equipment / Furniture / Materials,Ashes Boxes (Bio) Crematorium
18-Mar-19,Culture & Environment Services,Rs Components,264.62,Equipment / Furniture / Materials,AV leads for meeting rooms and backstage
01-Mar-19,Culture & Environment Services,Rubber Box Co Ltd,395.00,Equipment / Furniture / Materials,Purchase of Distribution Box for the Council Chamber
07-Mar-19,Culture & Environment Services,Screwfix Direct,41.72,Equipment / Furniture / Materials,repair parts
27-Mar-19,Culture & Environment Services,Screwfix Direct,43.71,Equipment / Furniture / Materials,lifeguard chair fixings and filler
22-Mar-19,Culture & Environment Services,Sp * Nationwide Traile,200.94,Equipment / Furniture / Materials,Events Van Load Rail & Accessories
29-Mar-19,Culture & Environment Services,Sp * Nationwide Traile,35.25,Equipment / Furniture / Materials,Events Van railing screws
28-Mar-19,Culture & Environment Services,Sportsdirect 366,33.37,Equipment / Furniture / Materials,Work ware PPE
19-Mar-19,Culture & Environment Services,Stg-Electric.Co.Uk,74.00,Equipment / Furniture / Materials,T19 1000W replacement lamps for stage lighting.
19-Mar-19,Culture & Environment Services,Stg-Electric.Co.Uk,74.00,Equipment / Furniture / Materials,T19 1000W replacement lamps for stage lighting.
19-Mar-19,Culture & Environment Services,Tesco Store 2877,10.00,Equipment / Furniture / Materials,Kitchen items
15-Mar-19,Culture & Environment Services,The Little Cake Place,45.83,Equipment / Furniture / Materials,Fees
28-Mar-19,Culture & Environment Services,The Range,7.48,Equipment / Furniture / Materials,Shelf kit for key box
13-Mar-19,Culture & Environment Services,Timpson Ltd,16.67,Equipment / Furniture / Materials,Cleaning cupboard keys 
19-Mar-19,Culture & Environment Services,Toolstation Ltd,46.75,Equipment / Furniture / Materials,Cleansing tools
28-Mar-19,Culture & Environment Services,Wh Smith,7.90,Equipment / Furniture / Materials,Permanent stickers and marker
05-Mar-19,Culture & Environment Services,Wickes Ipswich,10.82,Equipment / Furniture / Materials,materials for masonry team
19-Mar-19,Culture & Environment Services,Wickes Ipswich,50.00,Equipment / Furniture / Materials,Tools for Rnd 16
27-Mar-19,Culture & Environment Services,Wickes Ipswich,10.87,Equipment / Furniture / Materials,Rapid Cement - SALLOWS CLOSE - PA Inspector
21-Mar-19,Culture & Environment Services,Wilko Retail Limit,3.75,Equipment / Furniture / Materials,wall fixings for CP plinth
29-Mar-19,Culture & Environment Services,Wilko Retail Limit,8.87,Equipment / Furniture / Materials,3amp fuses and Ant bait
01-Mar-19,Culture & Environment Services,Www.Argos.Co.Uk,49.12,Equipment / Furniture / Materials,MICROWAVE FOR GAINSBOROUGH SPORTS CENTRE
21-Mar-19,Culture & Environment Services,Www.Defibshop.Co.Uk,975.00,Equipment / Furniture / Materials,AED for use by HEARS responders
21-Mar-19,Culture & Environment Services,Www.Defibshop.Co.Uk,975.00,Equipment / Furniture / Materials,AED for use by HEARS responders.
18-Mar-19,Culture & Environment Services,Www.Fitness-Superstore.C,166.12,Equipment / Furniture / Materials,x15 fitness mats for fitness classes
01-Mar-19,Culture & Environment Services,Www.Glasdon.Com,"1,020.12",Equipment / Furniture / Materials,Cleansing barrow
01-Mar-19,Culture & Environment Services,Www.Glasdon.Com,"1,020.12",Equipment / Furniture / Materials,Cleansing barrow
08-Mar-19,Culture & Environment Services,Www.Hgs.Co.Uk,20.91,Equipment / Furniture / Materials,Spirit Measures
13-Mar-19,Culture & Environment Services,Www.Nisbets.Com,79.95,Equipment / Furniture / Materials,Replacements baking trays for ones that went missing at part
14-Mar-19,Culture & Environment Services,Www.Physicalcompany.Co,135.16,Equipment / Furniture / Materials,Gym Matts & Back Rest Suppoprt
15-Mar-19,Culture & Environment Services,Www.Physicalcompany.Co,84.06,Equipment / Furniture / Materials,hand weights x3 for fitness classes
20-Mar-19,Culture & Environment Services,Www.Radio-Solution.Co.,111.96,Equipment / Furniture / Materials,4 x Replacement batteries for 2-way radios
15-Mar-19,Culture & Environment Services,Www.Ryman.Co.Uk,69.98,Equipment / Furniture / Materials,2 filing cabinets for office - hr
22-Mar-19,Culture & Environment Services,Www.Zoro.Co.Uk,324.99,Equipment / Furniture / Materials,Events PPE
22-Mar-19,Culture & Environment Services,Xl Displays Ltd,63.00,Equipment / Furniture / Materials,A2 NOTICE BOARD
26-Mar-19,Culture & Environment Services,Turner Tool Hire,"1,682.32",Equipment Hire,MEWP Hire
07-Mar-19,Culture & Environment Services,Marks&spencer Plc,35.00,Exhibition expenses,food for exhibition press launch
07-Mar-19,Culture & Environment Services,Paperchase,8.33,Exhibition expenses,Comments books for suffolk jewels exhibition
06-Mar-19,Culture & Environment Services,Paypal,15.57,Exhibition expenses,Gaffa tape for exhibition edging
11-Mar-19,Culture & Environment Services,Sainsburys S/mkt,5.92,Exhibition expenses,Suffolk Jewels private view refreshments
11-Mar-19,Culture & Environment Services,Wilko Retail Limit,6.25,Exhibition expenses,plates for private view
21-Mar-19,Culture & Environment Services,Premier Farnell,15.00,Fixtures & Fittings,5W LED Bulbs for on-stage working lights.
15-Mar-19,Culture & Environment Services,Harbro Supplies Ltd,321.50,Goods for Resale - Bereavement,masonry work expenses
21-Mar-19,Culture & Environment Services,Suffolk Coastal Distri,150.00,Goods for Resale - Bereavement,memorial application for leiston cemetery
13-Mar-19,Culture & Environment Services,Topps Tiles,69.83,Goods for Resale - Bereavement,Granite for MVB Plaques
21-Mar-19,Culture & Environment Services,Stringerswo,37.36,Goods for Resale - Equipment,Shuttles for resale
21-Mar-19,Culture & Environment Services,Stringerswo,37.36,Goods for Resale - Equipment,Shuttles for resale
21-Mar-19,Culture & Environment Services,Stringerswo,37.37,Goods for Resale - Equipment,Shuttles for resale
05-Mar-19,Culture & Environment Services,Suffolk County Council,9.17,Holding A/C - General Use,Death Certificate - Jude
07-Mar-19,Culture & Environment Services,Www.Ofcom.Org.Uk,62.50,Licences & Other Fees,OFCOM Radio License
12-Mar-19,Culture & Environment Services,Www.Ofcom.Org.Uk,75.00,Licences & Other Fees,Licence for 2-way-radios
13-Mar-19,Culture & Environment Services,Amz*medisave Uk,18.18,Materials and Supplies - Miscellaneous,Vomit & Urine Spill Refill Kit
21-Mar-19,Culture & Environment Services,Amzn Mktp Uk,9.48,Materials and Supplies - Miscellaneous,Table numbers
22-Mar-19,Culture & Environment Services,Asda Stores 4278,2.92,Materials and Supplies - Miscellaneous,volunteer refreshments and torch batteries
12-Mar-19,Culture & Environment Services,B&m Retail,12.82,Materials and Supplies - Miscellaneous,Various item for shower room - Christchurch Hub
14-Mar-19,Culture & Environment Services,Bag Agg Ltd,25.00,Materials and Supplies - Miscellaneous,Ballast - CCP BENCH BASE - Landscape Team
20-Mar-19,Culture & Environment Services,Bag Agg Ltd,25.00,Materials and Supplies - Miscellaneous,Ballast - CCP BENCH BASE - Landscape Team
28-Mar-19,Culture & Environment Services,Bolton Stores,4.17,Materials and Supplies - Miscellaneous,Friends meeting in the RDVC
07-Mar-19,Culture & Environment Services,Botanica Plant Collectio,62.50,Materials and Supplies - Miscellaneous,Magnolia Tree - REPLACEMENT TREE DONATION - Christchurch Pk
12-Mar-19,Culture & Environment Services,Botanica Plant Collectio,635.00,Materials and Supplies - Miscellaneous,Part payment for a palm tree for Arboretum Area CCP
12-Mar-19,Culture & Environment Services,Botanica Plant Collectio,317.50,Materials and Supplies - Miscellaneous,Tree for Christchurch Park
12-Mar-19,Culture & Environment Services,Botanica Plant Collectio,317.50,Materials and Supplies - Miscellaneous,Tree for Christchurch Park
13-Mar-19,Culture & Environment Services,Cobblers And Keys Ltd,25.42,Materials and Supplies - Miscellaneous,Keys required due for new staff
19-Mar-19,Culture & Environment Services,Collier&catchpole,26.48,Materials and Supplies - Miscellaneous,Pipe for tree planting - CCP - Landscape Team
04-Mar-19,Culture & Environment Services,Hg Gladwell & Sons,44.83,Materials and Supplies - Miscellaneous,Sale of Duck food - Christchurch Hub
25-Mar-19,Culture & Environment Services,Hmv Retail Ltd,4.99,Materials and Supplies - Miscellaneous,Dirty Dancing CD - FOH
12-Mar-19,Culture & Environment Services,Horticultural Sppls Ltd,47.44,Materials and Supplies - Miscellaneous,Mypex for Cemetery
14-Mar-19,Culture & Environment Services,Horticultural Sppls Ltd,58.46,Materials and Supplies - Miscellaneous,Grass Seeds - DEBEN ROAD PLAY AREA - Chantry Hub
20-Mar-19,Culture & Environment Services,Horticultural Sppls Ltd,16.50,Materials and Supplies - Miscellaneous,Pegs for Cemetery
12-Mar-19,Culture & Environment Services,J T Few Plant Hire Ltd,15.00,Materials and Supplies - Miscellaneous,Topsoil - DEBEN ROAD PLAY AREA - Chantry Hub
12-Mar-19,Culture & Environment Services,J T Few Plant Hire Ltd,45.00,Materials and Supplies - Miscellaneous,Topsoil - DEBEN ROAD PLAY AREA - Chantry Hub
13-Mar-19,Culture & Environment Services,J T Few Plant Hire Ltd,15.00,Materials and Supplies - Miscellaneous,Topsoil - DEBEN ROAD PLAY AREA - Chantry Hub
14-Mar-19,Culture & Environment Services,J T Few Plant Hire Ltd,30.00,Materials and Supplies - Miscellaneous,Topsoil - DEBEN ROAD PLAY AREA - Chantry Hub
19-Mar-19,Culture & Environment Services,Lumberjacks,24.45,Materials and Supplies - Miscellaneous,Timber for bench base - CCP - Landscape Team
21-Mar-19,Culture & Environment Services,Lumberjacks,108.33,Materials and Supplies - Miscellaneous,Rose Stakes
19-Mar-19,Culture & Environment Services,Machine Mart Ltd,19.19,Materials and Supplies - Miscellaneous,to open gate at recreation way
12-Mar-19,Culture & Environment Services,Notcutts Garden Ce,182.07,Materials and Supplies - Miscellaneous,Various Plants - CROWN POOLS - Landscape Team
01-Mar-19,Culture & Environment Services,Paypal,311.69,Materials and Supplies - Miscellaneous,Professional Saw Marlow Vega Green Silky saw Blades
18-Mar-19,Culture & Environment Services,Paypal,32.95,Materials and Supplies - Miscellaneous,Petzil Caritool for Arb team
27-Mar-19,Culture & Environment Services,Paypal,97.50,Materials and Supplies - Miscellaneous,Bar cover and files for Arbs
04-Mar-19,Culture & Environment Services,Ryman,4.99,Materials and Supplies - Miscellaneous,Card
01-Mar-19,Culture & Environment Services,Screwfix Direct Lt,6.99,Materials and Supplies - Miscellaneous,chalk line for line marking play grounds
19-Mar-19,Culture & Environment Services,Screwfix Direct Lt,4.99,Materials and Supplies - Miscellaneous,Bump Cap PPE - Christchurch Hub
11-Mar-19,Culture & Environment Services,Shell Ranelagh 390,13.38,Materials and Supplies - Miscellaneous,Fuel for vehicle AR07 CZV - Christchurch Hub
22-Mar-19,Culture & Environment Services,Spaldings Ltd,562.44,Materials and Supplies - Miscellaneous,materials for Cemetery
28-Mar-19,Culture & Environment Services,Tolleshunt Turf,"1,023.75",Materials and Supplies - Miscellaneous,Turf for Milli & Old Cem ordered 
08-Mar-19,Culture & Environment Services,W J Green Limited,19.57,Materials and Supplies - Miscellaneous,Husqvarna Bar Covers
11-Mar-19,Culture & Environment Services,Wickes Ipswich,33.47,Materials and Supplies - Miscellaneous,paint for benches and tape for machinery
12-Mar-19,Culture & Environment Services,Wickes Ipswich,14.50,Materials and Supplies - Miscellaneous,paint brushes and sand paper for benches
05-Mar-19,Culture & Environment Services,Wilko Retail Limit,25.00,Materials and Supplies - Miscellaneous,Hose Reel - CROWN POOLS - Christchurch Hub
13-Mar-19,Culture & Environment Services,Wm Morrisons Store,5.28,Materials and Supplies - Miscellaneous,Viakal for cleaners
18-Mar-19,Culture & Environment Services,Www.Archersigns.Co.Uk,104.95,Materials and Supplies - Miscellaneous,Sign - A Frame - men working over head
14-Mar-19,Culture & Environment Services,Www.Clarkforest.Com,99.00,Materials and Supplies - Miscellaneous,Chain oil
11-Mar-19,Culture & Environment Services,Www.Onlineforequine.Co,17.62,Materials and Supplies - Miscellaneous,Purchase of wall mounted tie rings for Holywells bike racks
28-Mar-19,Culture & Environment Services,Www.Safetyfirstaid.Co.,20.05,Materials and Supplies - Miscellaneous,Replacement 1st Aid box - CCP
05-Mar-19,Culture & Environment Services,Www.Trees.Org.Uk,150.00,Materials and Supplies - Miscellaneous,Method Statements for Commercial Arboriculture Arb Assoc
18-Mar-19,Culture & Environment Services,Aldi 89 776,20.59,Miscellaneous Expenses,refreshments for volunteers
18-Mar-19,Culture & Environment Services,Aldi 89 776,33.03,Miscellaneous Expenses,refreshments for volunteers
14-Mar-19,Culture & Environment Services,Amzn Mktp Uk,32.47,Miscellaneous Expenses,Purchase of PPE boots for Technical staff.
22-Mar-19,Culture & Environment Services,Asda Stores 4278,1.50,Miscellaneous Expenses,volunteer refreshments and torch batteries
29-Mar-19,Culture & Environment Services,Asda Stores 4278,1.09,Miscellaneous Expenses,Milk - refreshments for volunteers' tea/coffee
11-Mar-19,Culture & Environment Services,Booker Limited Ipswich,10.71,Miscellaneous Expenses,Milk and cups
04-Mar-19,Culture & Environment Services,Costa @ Debenhams 4304,4.00,Miscellaneous Expenses,Staff Refreshments - Ipswich Cook-off Event
04-Mar-19,Culture & Environment Services,Costa Coffee,7.37,Miscellaneous Expenses,Supplier Refreshments - Ipswich Cook-off Event
20-Mar-19,Culture & Environment Services,Costa Coffee,4.50,Miscellaneous Expenses,Meeting refreshments contractor
12-Mar-19,Culture & Environment Services,Cult Cafe,4.17,Miscellaneous Expenses,Meeting Refreshments - Crafted Classique
28-Mar-19,Culture & Environment Services,Intu Chapelfield Car Park,4.30,Miscellaneous Expenses,Car Park charges for site visit to Norwich Theatre Royal
01-Mar-19,Culture & Environment Services,Wilko Retail Limit,1.71,Miscellaneous Expenses,office glass drinking tumblers x8
19-Mar-19,Culture & Environment Services,Anglia Tool Centre,182.23,Miscellaneous Stock  - Purchases,Replacement battery drill for Landscape Tool
27-Mar-19,Culture & Environment Services,B & Q 1315,23.33,Miscellaneous Stock  - Purchases,Bark - WILLIAM STREET CAR PARK - Working with Landscape
27-Mar-19,Culture & Environment Services,B & Q 1315,93.33,Miscellaneous Stock  - Purchases,Bark - WILLIAM STREET CAR PARK - Working with Landscape
29-Mar-19,Culture & Environment Services,B & Q 1315,3.00,Miscellaneous Stock  - Purchases,Block paving - MARYON ROAD REC - Landscape Team
29-Mar-19,Culture & Environment Services,B & Q 1315,17.78,Miscellaneous Stock  - Purchases,Sharp sand & paving - MARYON ROAD REC - Landscape Team
05-Mar-19,Culture & Environment Services,B & Q 1372,6.77,Miscellaneous Stock  - Purchases,Nut - ASHINGDON REC - Landscape Team
14-Mar-19,Culture & Environment Services,Bag Agg Ltd,28.50,Miscellaneous Stock  - Purchases,Topsoil - ASHINGDON REC - Landscape Team
25-Mar-19,Culture & Environment Services,Bag Agg Ltd,38.80,Miscellaneous Stock  - Purchases,Ballast - Newbury Road Rec - Landscape Team
25-Mar-19,Culture & Environment Services,Bag Agg Ltd,28.88,Miscellaneous Stock  - Purchases,Type 1 Granite - Newbury Road Rec - Landscape Team
25-Mar-19,Culture & Environment Services,Bag Agg Ltd,81.75,Miscellaneous Stock  - Purchases,Type 1 Granite - Newbury Road Rec - Landscape Team
28-Mar-19,Culture & Environment Services,Bag Agg Ltd,27.25,Miscellaneous Stock  - Purchases,Type 1 Granite - NEWBURY REC - Landscape Team
22-Mar-19,Culture & Environment Services,Bolton Stores,4.17,Miscellaneous Stock  - Purchases,Coffee and milk for TED training
04-Mar-19,Culture & Environment Services,Buildbase - Rochford,140.00,Miscellaneous Stock  - Purchases,Bulk bag of Topsoil - ASHINGDON REC - Landscape Team
05-Mar-19,Culture & Environment Services,Buildbase - Rochford,91.10,Miscellaneous Stock  - Purchases,Bulk bag of Ballast - ASHINGDON REC - Landscape Team
05-Mar-19,Culture & Environment Services,Buildbase - Rochford,41.17,Miscellaneous Stock  - Purchases,Bulk Bag of Ballast - ASHINGDON REC - Landscape Team
05-Mar-19,Culture & Environment Services,Buildbase - Rochford,41.17,Miscellaneous Stock  - Purchases,Bulk Bag of Ballast - ASHINGDON REC - Landscape Team
05-Mar-19,Culture & Environment Services,Buildbase - Rochford,46.60,Miscellaneous Stock  - Purchases,Fast set cement - ASHINGDON REC - Landscape Team
20-Mar-19,Culture & Environment Services,Collier&catchpole,204.40,Miscellaneous Stock  - Purchases,x56 bags for Cement for The Landscape Team
07-Mar-19,Culture & Environment Services,Horticultural Sppls Ltd,32.00,Miscellaneous Stock  - Purchases,Groundcover pegs - SHERRINGTON ROAD - Landscape Team
12-Mar-19,Culture & Environment Services,Horticultural Sppls Ltd,16.00,Miscellaneous Stock  - Purchases,Groundcover pegs - SHERRINGTON - Landscape Team
06-Mar-19,Culture & Environment Services,Indespension,2.95,Miscellaneous Stock  - Purchases,Hook for digger trailer - Landscape Team
05-Mar-19,Culture & Environment Services,Lumberjacks,3.13,Miscellaneous Stock  - Purchases,Timber - SATURN ROAD - Landscape Team
07-Mar-19,Culture & Environment Services,Lumberjacks,12.47,Miscellaneous Stock  - Purchases,Post Mix - SATURN ROAD - Landscape Team
07-Mar-19,Culture & Environment Services,Lumberjacks,10.17,Miscellaneous Stock  - Purchases,Timber - SATURN ROAD - Landscape Team
15-Mar-19,Culture & Environment Services,Notcutts Garden Ce,152.52,Miscellaneous Stock  - Purchases,Plants - CROWN POOLS - Landscape Team
20-Mar-19,Culture & Environment Services,Screwfix Dir. Ltd,22.89,Miscellaneous Stock  - Purchases,Bench fixings - ALEX PARK - Landscape Team
25-Mar-19,Culture & Environment Services,Screwfix Dir. Ltd,38.13,Miscellaneous Stock  - Purchases,Cutting Discs & Resin - NEWBURY REC - Landscape Team
01-Mar-19,Culture & Environment Services,Sth Essex Fastener,145.28,Miscellaneous Stock  - Purchases,Ratchet Kit & steel nutsert - Landscape team
01-Mar-19,Culture & Environment Services,Suffolk Fastener (Ipsw,5.74,Miscellaneous Stock  - Purchases,Part for swing - THE DALES PLAY AREA - Landscape Team
01-Mar-19,Culture & Environment Services,Table Table41017465,33.56,Miscellaneous Stock  - Purchases,x3 evening meals - ASHINGDON REC - Landscape Team
01-Mar-19,Culture & Environment Services,Wickes Ipswich,9.17,Miscellaneous Stock  - Purchases,Cutting disc - SATURN ROAD - Landscape Team
05-Mar-19,Culture & Environment Services,Wickes Ipswich,12.49,Miscellaneous Stock  - Purchases,x80 pk of screws - SATURN ROAD - Landscape Team
28-Mar-19,Culture & Environment Services,Wickes Ipswich,26.42,Miscellaneous Stock  - Purchases,Rubber grip & postcrete - PAVILLION POST CHANTRY - Landscape
20-Mar-19,Culture & Environment Services,Wilko Retail Limit,2.92,Miscellaneous Stock  - Purchases,WD40 - Landscape Team
11-Mar-19,Culture & Environment Services,Dwp,786.90,Non Contracted_Professional Services,Site inspection_needs recoding 5170 MAGP GEN001
13-Mar-19,Culture & Environment Services,Suffolk County Council,20.83,Non Contracted_Professional Services,skip permit
15-Mar-19,Culture & Environment Services,Suffolk County Council,70.00,Non Contracted_Professional Services,Mewp licence for tree work in highway
15-Mar-19,Culture & Environment Services,Suffolk County Council,70.00,Non Contracted_Professional Services,MEWP licence for work in the Highway
01-Mar-19,Culture & Environment Services,Www.Bali.Org.Uk,"1,354.80",Non Contracted_Professional Services,membership
12-Mar-19,Culture & Environment Services,Boilerjuice Ltd,254.49,Parks Vehicle Costs,Oil for 2 Nursery Lodge
12-Mar-19,Culture & Environment Services,Boilerjuice Ltd,"1,037.10",Parks Vehicle Costs,Red Diesel for Chantry
12-Mar-19,Culture & Environment Services,Dvla Vehicle Tax,252.50,Parks Vehicle Costs,Vehicle Tax for LJ16 ZWZ
21-Mar-19,Culture & Environment Services,Dvla Vehicle Tax,252.50,Parks Vehicle Costs,Vehicle Tax for AY07 XBC
04-Mar-19,Culture & Environment Services,Leigh Baxter Associate,50.00,Parks Vehicle Costs,Replacement part for digger - Landscape Team
07-Mar-19,Culture & Environment Services,Easichalk Sc Paints,10.82,Premises Costs - Miscellaneous,Chalk Pens
11-Mar-19,Culture & Environment Services,Easichalk Sc Paints,7.48,Premises Costs - Miscellaneous,Chalk remover for Ipswich market
08-Mar-19,Culture & Environment Services,Surf & Turf Instant Sh,39.12,Premises Costs - Miscellaneous,Gazebo leg on Ipswich Market
11-Mar-19,Culture & Environment Services,Surf & Turf Instant Sh,234.17,Premises Costs - Miscellaneous,Gazebo parts for Ipswich Market
06-Mar-19,Culture & Environment Services,Www.Sign-Holders.Co.Uk,70.40,Premises Costs - Miscellaneous,Chalkboard for market
06-Mar-19,Culture & Environment Services,Amzn Mktp Uk,8.78,Stationery,DYMO Tape
29-Mar-19,Culture & Environment Services,Amznmktplace,7.12,Stationery,Stationery
25-Mar-19,Culture & Environment Services,B&m Retail Ltd,41.43,Stationery,Refreshments for 125th weekend
19-Mar-19,Culture & Environment Services,Post Office Counter,7.00,Stationery,Sticky fixers and super glue
18-Mar-19,Culture & Environment Services,Ryman,33.32,Stationery,"Lamination pouches, various sizes."
22-Mar-19,Culture & Environment Services,Ryman,12.49,Stationery,White Card
25-Mar-19,Culture & Environment Services,Timpson,5.00,Stationery,Engraving for 125 trophey
25-Mar-19,Culture & Environment Services,Timpson,19.99,Stationery,Torphey for 125 lifesaving competition
12-Mar-19,Culture & Environment Services,Viking Uk,21.45,Stationery,Tipp-Ex & Post It Notes
22-Mar-19,Culture & Environment Services,Wh Smith,32.42,Stationery,Mounting Equipment for 125 heritage display
28-Mar-19,Culture & Environment Services,Wh Smith,10.82,Stationery,A3 laminating pouches
08-Mar-19,Culture & Environment Services,Www.Banneruk.Com,8.49,Stationery,Desk Blotter - Office
15-Mar-19,Culture & Environment Services,Www.Banneruk.Com,3.20,Stationery,Stationery for Waste Services
15-Mar-19,Culture & Environment Services,Www.Banneruk.Com,19.67,Stationery,Stationery for Waste Services
18-Mar-19,Culture & Environment Services,Www.Banneruk.Com,38.99,Stationery,Bankers Boxes for Cremation P/Work
19-Mar-19,Culture & Environment Services,Www.Banneruk.Com,54.10,Stationery,Stationery for Waste Services
21-Mar-19,Culture & Environment Services,Www.Banneruk.Com,24.39,Stationery,Office stationery
21-Mar-19,Culture & Environment Services,Www.Banneruk.Com,139.76,Stationery,stationary
28-Mar-19,Culture & Environment Services,Www.Banneruk.Com,-19.38,Stationery,Refund - Lam Pouches - Never Received
01-Mar-19,Culture & Environment Services,Www.Staples.Co.Uk,4.65,Stationery,DIVIDERS
28-Mar-19,Culture & Environment Services,Www.Staples.Co.Uk,62.78,Stationery,STATIONARY ITEMS
13-Mar-19,Culture & Environment Services,Amzn Mktp Uk,2.49,Subsistence & Conference/Seminar / Event Expenses,Red felt tips for Shop Mo
08-Mar-19,Culture & Environment Services,Caffe Nero - 101,6.29,Subsistence & Conference/Seminar / Event Expenses,meeting with ITGA chair
25-Mar-19,Culture & Environment Services,Iceland,0.92,Subsistence & Conference/Seminar / Event Expenses,milk for shopmo
12-Mar-19,Culture & Environment Services,Town & Tea,75.00,Subsistence & Conference/Seminar / Event Expenses,Tea Walk payment for refreshments
05-Mar-19,Culture & Environment Services,Waitrose Ltd,0.96,Subsistence & Conference/Seminar / Event Expenses,Milk for Shop mo
12-Mar-19,Culture & Environment Services,Waitrose Ltd,0.96,Subsistence & Conference/Seminar / Event Expenses,Milk for Shop mo
19-Mar-19,Culture & Environment Services,Waitrose Ltd,0.96,Subsistence & Conference/Seminar / Event Expenses,Milk for Shop mo
05-Mar-19,Culture & Environment Services,Elite Academy Ltd,195.83,Training Expenses,SIA CCTV training qualification
06-Mar-19,Culture & Environment Services,Elite Academy Ltd,195.83,Training Expenses,CCTV operators training
26-Mar-19,Culture & Environment Services,Hotel * Hotelsone.Com,186.60,Training Expenses,HoS 2 days booking for course Birmingham agreed HP
06-Mar-19,Culture & Environment Services,Ncs*vue Citb Hs&e Rev,33.50,Training Expenses,CITB Training for CSCS Supervisor card
07-Mar-19,Culture & Environment Services,Paypal,30.83,Training Expenses,APSE training 
01-Mar-19,Culture & Environment Services,Premier Inn 44534185,64.58,Training Expenses,Accomodation for Bat Course 
01-Mar-19,Culture & Environment Services,Vue*ncs Citb Hs&e Test,17.50,Training Expenses,H S E specialist supervisors test 
19-Mar-19,Culture & Environment Services,Www.Swimming.Org,566.67,Training Expenses,ASA Level 2 Swimming Teacher 
20-Mar-19,Culture & Environment Services,Www.Lifesaversdirect,32.08,Training/Courses Running Costs,life saving packs
29-Mar-19,Culture & Environment Services,Www.Lifesaversdirect,26.00,Training/Courses Running Costs,Baby Anne Face - Pk 6
29-Mar-19,Culture & Environment Services,Www.Lifesaversdirect,49.00,Training/Courses Running Costs,Little Annie Disp Airways - 24
19-Mar-19,Culture & Environment Services,Amzn Mktp Uk,316.03,Transport Costs - Miscellaneous,Key cabinet for Transport
12-Mar-19,Culture & Environment Services,Sainsburys S/mkt,35.00,Transport Costs - Miscellaneous,Kettle for Office
11-Mar-19,Development,Geodesys,88.33,Capital Expenditure,15 Packard ave
18-Mar-19,Development,Halfords 0883,46.25,Direct Transport Costs,Screen wash and anti freeze for pool cars
05-Mar-19,Development,Ihbc.Org.Uk,120.00,Employee Expenses,2019/20 Membership RS
06-Mar-19,Development,Paypal,45.00,Employee Expenses,2019/20 Membership AR
27-Mar-19,Development,Www.Ciob.Org.Uk,50.00,Employee Expenses,CIOB fee 
18-Mar-19,Development,Www.Ribabookshops.Com,744.00,GF_Adhoc  Repair & Maintenance,Various JCT contracts
04-Mar-19,Development,Calders,168.95,Hirings - Other Council Properties,commission
13-Mar-19,Development,Suffolk Coastal Distri,96.00,Non Contracted_Professional Services,Partnership Application Inspections 116 Bucklesham Rd
08-Mar-19,Development,Horizon Environment Sr,49.75,Premises Costs - Miscellaneous,pest control
29-Mar-19,Development,Premier Stores,203.00,Publications - Purchase,papers
13-Mar-19,Development,Www.Latitudemaps.Co.Uk,16.50,Publications - Purchase,Latitude Map
13-Mar-19,Development,Www Building Co UK Subsc,163.01,Publications - Subscriptions,2019 renewal for Building magazine 
20-Mar-19,Development,Safetyshop,94.50,Reactive Repairs,Floor tape for plant room at Cornhill
20-Mar-19,Development,Safetyshop,94.50,Reactive Repairs,Floor tape for plant room at Cornhill
08-Mar-19,Development,Www.Sackers .Co.Uk,642.60,Removal/Emptying of Waste,waste removal
19-Mar-19,Development,Office Is Ltd,21.73,Stationery,1st aid stock
12-Mar-19,Development,Suk Retail Ltd,3.99,Stationery,Velcro pads for Conservation event
15-Mar-19,Development,Www.Banneruk.Com,41.79,Stationery,flip charts & pens
18-Mar-19,Development,Sainsburys S/mkt,4.25,Subsistence & Conference/Seminar / Event Expenses,milk
07-Mar-19,Development,Lul Ticket Machine,39.30,Use Of Public Transport,3 x London travel cards - Futurebuild 2019
07-Mar-19,Development,Lul Ticket Machine,52.40,Use Of Public Transport,4 x London travel cards - Futurebuild 2019
07-Mar-19,Development,Ncp P&d,5.50,Use Of Public Transport,Car park costs @ Newbury Park - Futurebuild 2019
27-Mar-19,Finance & Revenues,Comms Express Ltd,56.10,Capital Expenditure,Edge switch refresh
18-Mar-19,Finance & Revenues,Ebuyer (Uk) Ltd,559.14,Capital Expenditure,Conference camera for room 2A
27-Mar-19,Finance & Revenues,Gbics Com Ltd,640.00,Capital Expenditure,edge switch refresh
15-Mar-19,Finance & Revenues,Paypal,46.50,Capital Expenditure,Edge switch refresh
08-Mar-19,Finance & Revenues,Amzn Mktp Uk,31.96,Computer Equipment - Purchase,4 x Wireless Mice Stock
13-Mar-19,Finance & Revenues,Amzn Mktp Uk,100.90,Computer Equipment - Purchase,10 x laptop cases for stock
13-Mar-19,Finance & Revenues,Amzn Mktp Uk,23.92,Computer Equipment - Purchase,Display cables SRP
14-Mar-19,Finance & Revenues,Amzn Mktp Uk,17.98,Computer Equipment - Purchase,Display cables SRP
27-Mar-19,Finance & Revenues,Amzn Mktp Uk,27.86,Computer Equipment - Purchase,Ergonomic mse and serial cable
19-Mar-19,Finance & Revenues,Kenable,64.56,Computer Equipment - Purchase,USB Blue Ext Cables
15-Mar-19,Finance & Revenues,"Probrand Ltd.,",712.38,Computer Equipment - Purchase,IT Monitor stock
07-Mar-19,Finance & Revenues,Service Fees - Fraedom Pty Ltd,383.15,Computer Software - Maintenance,Fraedom Card Usage Charges 1/2/19 to 28/2/19
27-Mar-19,Finance & Revenues,"Probrand Ltd.,",158.76,Computer Software - Purchase,PDF Create licences x 2 (IPSERV)
25-Mar-19,Finance & Revenues,Smartsheet,37.48,Computer Software - Purchase,Smartsheet Licensing
25-Mar-19,Finance & Revenues,Smartsheet,37.47,Computer Software - Purchase,Smartsheet Licensing
05-Mar-19,Finance & Revenues,Www.Maytech.Net,11.54,Computer Software - Purchase,File transfer application
01-Mar-19,Finance & Revenues,Www.Aat-Org.Uk,94.00,Employee Expenses,AAT Membership 
15-Mar-19,Finance & Revenues,"Probrand Ltd.,",427.43,Equipment / Furniture / Materials,Monitors for agile desks
06-Mar-19,Finance & Revenues,Southend County,"1,960.00",Legal Services & Fees,Committal summons
05-Mar-19,Finance & Revenues,Smartsheet,40.29,Non Contracted_Professional Services,License for CSC
18-Mar-19,Finance & Revenues,Ipf,"3,935.00",Subscriptions - Service Related,CIPFA Finance Advisory Network Subscription 01/04/19-31/3/20
04-Mar-19,Finance & Revenues,Amzn Mktp Uk,7.20,Telecommunication Costs - Mobiles,Protective cases for Smartphones
04-Mar-19,Finance & Revenues,Amzn Mktp Uk,3.60,Telecommunication Costs - Mobiles,Protective cases for Smartphones
06-Mar-19,Finance & Revenues,Amzn Mktp Uk,33.99,Telecommunication Costs - Mobiles,Basic Mobile phone
06-Mar-19,Finance & Revenues,Amzn Mktp Uk,4.15,Telecommunication Costs - Mobiles,Protective case for Smartphone
06-Mar-19,Finance & Revenues,Amzn Mktp Uk,10.39,Telecommunication Costs - Mobiles,Protective case for Smartphone
06-Mar-19,Finance & Revenues,Amzn Mktp Uk,114.92,Telecommunication Costs - Mobiles,Smartphone
07-Mar-19,Finance & Revenues,Amzn Mktp Uk,9.57,Telecommunication Costs - Mobiles,Protective case for Smartphone
15-Mar-19,Finance & Revenues,Amzn Mktp Uk,3.60,Telecommunication Costs - Mobiles,Protective Cases for Smartphones
15-Mar-19,Finance & Revenues,Amzn Mktp Uk,3.60,Telecommunication Costs - Mobiles,Protective Cases for Smartphones
15-Mar-19,Finance & Revenues,Amzn Mktp Uk,3.60,Telecommunication Costs - Mobiles,Protective Cases for Smartphones
20-Mar-19,Finance & Revenues,Amzn Mktp Uk,3.07,Telecommunication Costs - Mobiles,Protective Cases for Smartphones
20-Mar-19,Finance & Revenues,Amzn Mktp Uk,3.07,Telecommunication Costs - Mobiles,Protective Cases for Smartphones
25-Mar-19,Finance & Revenues,Amzn Mktp Uk,4.15,Telecommunication Costs - Mobiles,Protective Case for Smartphone
29-Mar-19,Finance & Revenues,Amzn Mktp Uk,4.15,Telecommunication Costs - Mobiles,Protective Case for Smartphone
29-Mar-19,Finance & Revenues,Amzn Mktp Uk,7.47,Telecommunication Costs - Mobiles,Protective cases for Smartphones
25-Mar-19,Finance & Revenues,Cbt Nuggets,46.44,Training Expenses,ICT Training
28-Mar-19,Finance & Revenues,Kaplan Financial Ltd,33.33,Training Expenses,AAT Exam Fee 
28-Mar-19,Finance & Revenues,Kaplan Financial Ltd,45.00,Training Expenses,AAT Exam Fee
06-Mar-19,Housing & Community Services,Bunzl,183.26,Cleaning Supplies,cleaning supplies
27-Mar-19,Housing & Community Services,Amzn Mktp Uk,43.55,Computer Equipment - Purchase,Wireless Mice
06-Mar-19,Housing & Community Services,Capita Gas Reg,393.46,Employee Expenses,Gas Safe Registrations 
22-Mar-19,Housing & Community Services,Trainline,102.62,Employee Expenses,Train ticket 
12-Mar-19,Housing & Community Services,Amazon.Co.Uk,26.31,Equipment / Furniture / Materials,10x Viakal limescale remover for Gipping house cleaners
25-Mar-19,Housing & Community Services,Amzn Mktp Uk,10.98,Equipment / Furniture / Materials,Safety Signs - Danger Fragile Roof
15-Mar-19,Housing & Community Services,Www.Niceiconline.Com,16.20,Equipment / Furniture / Materials,Part P Electrical Certifications
01-Mar-19,Housing & Community Services,Sainsburys S/mkt,13.90,Housing  - other Costs,Get Together Refreshments
08-Mar-19,Housing & Community Services,Sainsburys S/mkt,8.04,Housing  - other Costs,Area Housing Panel refreshments
14-Mar-19,Housing & Community Services,Sainsburys S/mkt,21.08,Housing  - other Costs,SW and NW Panels refreshments
25-Mar-19,Housing & Community Services,Sainsburys S/mkts,23.02,Housing  - other Costs,Resilience and Wellbeing workshop refreshments
27-Mar-19,Housing & Community Services,Sainsburys S/mkts,4.79,Housing  - other Costs,Tenant Get Together refreshments
05-Mar-19,Housing & Community Services,Cpw Locksmiths And Securi,120.00,HRA Special Repairs & Maintenance,provide lock to scheme
13-Mar-19,Housing & Community Services,Possessionclaim.Go,325.00,Legal Services & Fees,Possession claim on line
13-Mar-19,Housing & Community Services,Possessionclaim.Go,325.00,Legal Services & Fees,possession claim on line
13-Mar-19,Housing & Community Services,Possessionclaim.Go,325.00,Legal Services & Fees,possession claim on line
13-Mar-19,Housing & Community Services,Possessionclaim.Go,325.00,Legal Services & Fees,possession claim on line
29-Mar-19,Housing & Community Services,Possessionclaim.Go,121.00,Legal Services & Fees,warrant of possession
20-Mar-19,Housing & Community Services,Eoe Coop,25.00,Materials and Supplies - Miscellaneous,Fees
25-Mar-19,Housing & Community Services,Eoe Coop,20.00,Materials and Supplies - Miscellaneous,Fees
21-Mar-19,Housing & Community Services,Eoe Co-Op,25.00,Materials and Supplies - Miscellaneous,Fees
25-Mar-19,Housing & Community Services,Eoe Co-Op,35.00,Materials and Supplies - Miscellaneous,Fees
25-Mar-19,Housing & Community Services,Liquidline,247.27,Materials and Supplies - Miscellaneous,"Coffee, tea bags and sugar"
15-Mar-19,Housing & Community Services,Priory Direct,88.98,Materials and Supplies - Miscellaneous,Special paper for rent cards
13-Mar-19,Housing & Community Services,Rs Components,44.28,Materials and Supplies - Miscellaneous,3357916 additional hinges x4
11-Mar-19,Housing & Community Services,Waitrose Ltd,0.96,Materials and Supplies - Miscellaneous,Milk
11-Mar-19,Housing & Community Services,J2 Efax Plus Service,11.00,Miscellaneous Expenses,Monthly fee for secure fax system (used for food parcels)
20-Mar-19,Housing & Community Services,Ryder-Davies & Partners,253.96,Non Contracted_Professional Services,Vet inspection for Animal Breeding Licence
21-Mar-19,Housing & Community Services,Connells Client Account,360.00,Services for Clients,Agents fee 14561
01-Mar-19,Housing & Community Services,Easyhotel Ipswich,44.99,Services for Clients,One night at Easy Hotel for client
04-Mar-19,Housing & Community Services,Easyhotel Ipswich,154.96,Services for Clients,3 nights for client
04-Mar-19,Housing & Community Services,Easyhotel Ipswich,1.00,Services for Clients,Client hotel charges
04-Mar-19,Housing & Community Services,Easyhotel Ipswich,10.00,Services for Clients,Client hotel charges
05-Mar-19,Housing & Community Services,Easyhotel Ipswich,1.00,Services for Clients,Client hotel charges
05-Mar-19,Housing & Community Services,Easyhotel Ipswich,149.97,Services for Clients,client hotel charges for 3 nights
08-Mar-19,Housing & Community Services,Easyhotel Ipswich,1.00,Services for Clients,Charge related to hotel costs
08-Mar-19,Housing & Community Services,Easyhotel Ipswich,439.90,Services for Clients,Same client still in hotel
21-Mar-19,Housing & Community Services,Greggs,13.45,Specific Campaigns / Projects expenditure,Refreshments 
06-Mar-19,Housing & Community Services,Cartridge Save,184.94,Stationery,Stationery
04-Mar-19,Housing & Community Services,Waitrose Ltd,1.35,Stationery,Milk
08-Mar-19,Housing & Community Services,Waitrose Ltd,1.13,Stationery,Milk
15-Mar-19,Housing & Community Services,Waitrose Ltd,2.00,Stationery,Milk
22-Mar-19,Housing & Community Services,Waitrose Ltd,1.87,Stationery,Milk
29-Mar-19,Housing & Community Services,Waitrose Ltd,2.25,Stationery,Milk
12-Mar-19,Housing & Community Services,Www.Banneruk.Com,61.59,Stationery,Black wipeboard pens and black biro pens
26-Mar-19,Housing & Community Services,Www.Ikea.Com,83.29,Stationery,Ikea Shelfing Units for meeting rooms B & C at CSC
01-Mar-19,Housing & Community Services,Fast Sms,420.00,Telecommunication Costs - Business Phones,"10,000 txt msg credits for accommodation team"
01-Mar-19,Housing & Community Services,Greater Anglia T/o,87.90,Training Expenses,SG train travel to London 06/03/2019 for Ferret Course
25-Mar-19,Housing & Community Services,Hqn Limited,250.80,Training Expenses,Conference/training costs 
07-Mar-19,Housing & Community Services,Paypal,18.99,Training Expenses,CPAG universal credit book
26-Mar-19,Housing & Community Services,Trainline,178.48,Training Expenses,Janette - train to Northgate meeting at Alderley Edge
08-Mar-19,Housing & Community Services,Greater Anglia T/o,43.00,Use Of Public Transport,Client one way trip (homelessness)
21-Mar-19,Housing & Community Services,Greater Anglia T/o,87.90,Use Of Public Transport,Attend Rough sleeper Conferrence
14-Mar-19,People & Governance,Envatomarket46407422,26.49,Advertising/Publicity,Website Plugin
11-Mar-19,People & Governance,Facebk *e9hdpl68j2,29.52,Advertising/Publicity,Social Media Advertising
11-Mar-19,People & Governance,Facebk *e9hdpl68j2,11.03,Advertising/Publicity,Social Media Advertising
11-Mar-19,People & Governance,Facebk *e9hdpl68j2,6.35,Advertising/Publicity,Social Media Advertising
11-Mar-19,People & Governance,Facebk *e9hdpl68j2,436.43,Advertising/Publicity,Social Media Advertising
04-Mar-19,People & Governance,Facebk *ef2qrkw7j2,24.62,Advertising/Publicity,Social Media Advertising
04-Mar-19,People & Governance,Facebk *ef2qrkw7j2,458.72,Advertising/Publicity,Social Media Advertising
25-Mar-19,People & Governance,Facebk *sffsnkn7j2,58.42,Advertising/Publicity,Social Media Advertising
25-Mar-19,People & Governance,Facebk *sffsnkn7j2,7.67,Advertising/Publicity,Social Media Advertising
25-Mar-19,People & Governance,Facebk *sffsnkn7j2,44.08,Advertising/Publicity,Social Media Advertising
25-Mar-19,People & Governance,Facebk *sffsnkn7j2,373.17,Advertising/Publicity,Social Media Advertising
07-Mar-19,People & Governance,Facebk *tc2zekn7j2,271.42,Advertising/Publicity,Social Media Advertising
07-Mar-19,People & Governance,Facebk *tc2zekn7j2,12.11,Advertising/Publicity,Social Media Advertising
18-Mar-19,People & Governance,Facebk *z6gssks7j2,0.02,Advertising/Publicity,Social Media Advertising
18-Mar-19,People & Governance,Facebk *z6gssks7j2,21.47,Advertising/Publicity,Social Media Advertising
18-Mar-19,People & Governance,Facebk *z6gssks7j2,18.13,Advertising/Publicity,Social Media Advertising
18-Mar-19,People & Governance,Facebk *z6gssks7j2,57.12,Advertising/Publicity,Social Media Advertising
18-Mar-19,People & Governance,Facebk *z6gssks7j2,386.59,Advertising/Publicity,Social Media Advertising
18-Mar-19,People & Governance,Parcel2go_uk,18.57,Advertising/Publicity,Postage for the Museum Brochures
21-Mar-19,People & Governance,Anglia Professional Dry,10.12,Clothing / Uniform & Laundry,cleaning of work suit
18-Mar-19,People & Governance,Spectrum,133.75,Computer Consumables and other Minor IT costs,Cllrs Epson/canon inks
22-Mar-19,People & Governance,Spectrum,111.92,Computer Consumables and other Minor IT costs,Epson / Canon inks for councillors
27-Mar-19,People & Governance,Spectrum,19.98,Computer Consumables and other Minor IT costs,inks councillors/ shelt. housing
27-Mar-19,People & Governance,Spectrum,45.69,Computer Consumables and other Minor IT costs,inks councillors/ shelt. housing
12-Mar-19,People & Governance,Shell Ranelagh 390,22.48,Direct Transport Costs,fuel
27-Mar-19,People & Governance,Sp * Chilvers Reprogra,125.00,Equipment / Furniture / Materials,New Clamp Bar for Pressure Clamp (Print Room)
11-Mar-19,People & Governance,Novotel Wolverhampton,61.67,Mayoral Related Expenditure,NACO Conference 2019
13-Mar-19,People & Governance,St Edmundsbury Cou,62.50,Mayoral Related Expenditure,Mayor and Consort at Bury St Eds Mayor dinner
21-Mar-19,People & Governance,Makro Self Service Ipswic,223.93,Miscellaneous Functions & Events,prosecco for the ball
26-Mar-19,People & Governance,Makro Self Service Ipswic,22.52,Miscellaneous Functions & Events,soft drink and water for the ball
14-Mar-19,People & Governance,Marks&spencer Plc,26.05,Miscellaneous Functions & Events,Wragg even sandwich cake
20-Mar-19,People & Governance,Marks&spencer Plc,21.65,Miscellaneous Functions & Events,Gotelee event. sandwiches and cake
26-Mar-19,People & Governance,Marks&spencer Plc,6.12,Miscellaneous Functions & Events,long service award cake
29-Mar-19,People & Governance,Sainsburys S/mkt,7.40,Miscellaneous Functions & Events,sanctuary event. milk/cake.
05-Mar-19,People & Governance,Waitrose Ltd,1.94,Miscellaneous Functions & Events,milk/biscuits for Mary Le Tower London bridge meeting.
15-Mar-19,People & Governance,Waitrose Ltd,4.86,Miscellaneous Functions & Events,"beavers, squash and biscuits"
25-Mar-19,People & Governance,Waitrose Ltd,10.70,Miscellaneous Functions & Events,Vist to mayors parlour by girl guides
28-Mar-19,People & Governance,Waitrose Ltd,2.54,Miscellaneous Functions & Events,blind club. biscuits milk
18-Mar-19,People & Governance,Amazon.Co.Uk,23.97,Miscellaneous Stock  - Purchases,Binding Covers for the print room
14-Mar-19,People & Governance,Amzn Mktp Uk,75.00,Miscellaneous Stock  - Purchases,Pull up banner cases for the print room
18-Mar-19,People & Governance,Amzn Mktp Uk,71.07,Miscellaneous Stock  - Purchases,Salmon 120gsm paper for the printroom
18-Mar-19,People & Governance,Suk Retail Ltd,12.49,Miscellaneous Stock  - Purchases,Binding Covers for the printroom
19-Mar-19,People & Governance,Www.Banneruk.Com,13.00,Miscellaneous Stock  - Purchases,A4 Laminates for the print room
18-Mar-19,People & Governance,Www.Ovendenpapers.,260.36,Miscellaneous Stock  - Purchases,Wide format paper for the printroom
06-Mar-19,People & Governance,Www.Paper.Co.Uk,192.32,Miscellaneous Stock  - Purchases,Paper Supply for the Print Room
20-Mar-19,People & Governance,Www.Paper.Co.Uk,237.12,Miscellaneous Stock  - Purchases,Paper supply for the print room
26-Mar-19,People & Governance,Www.Paper.Co.Uk,227.56,Miscellaneous Stock  - Purchases,Paper for the print room
06-Mar-19,People & Governance,Www.Accounts@iia.Org.U,196.00,Non Contracted_Professional Services,IIA Annual Membership Subscription
27-Mar-19,People & Governance,Argos Ltd,180.00,Specific Campaigns / Projects expenditure,Retirement Gift card 
13-Mar-19,People & Governance,Mailchimp,417.70,Subscriptions - Service Related,MailChimp
27-Mar-19,People & Governance,Mailchimp,191.42,Subscriptions - Service Related,MailChimp
18-Mar-19,People & Governance,"Sprout Social, Inc",779.85,Subscriptions - Service Related,Social Media Management
25-Mar-19,People & Governance,Isaca,321.13,Training Expenses,CISA training materials
25-Mar-19,People & Governance,Isaca,149.55,Training Expenses,ISACA membership
11-Mar-19,People & Governance,Trainline,22.76,Use Of Public Transport,New Anglia LEP Marketing consortium meeting in Norwich
